bitfinex-derivatives/quotes_SOLF0:USTF0_20260203
["timestamp","ask_amount","ask_price","bid_price","bid_amount"]
[1770161114173,3.59285861,97.703,97.638,3.77192618]
[1770161115471,9.2243,97.7,97.638,3.77192618]
[1770161115773,9.2243,97.7,97.601,291.8]
[1770161115774,3.59285861,97.699,97.614,3.77192618]
[1770161115970,16.20446815,97.68,97.615,9.2322]
[1770161116973,3.59285861,97.671,97.614,3.77192618]
[1770161118680,3.59285861,97.69,97.614,3.77192618]
[1770161119672,9.2261,97.681,97.624,9.2314]
[1770161119877,3.59285861,97.69,97.625,3.77192618]
[1770161120575,3.59285861,97.69,97.636,9.2303]
[1770161121973,3.59285861,97.69,97.627,9.2311]
[1770161122379,3.59285861,97.69,97.625,3.77192618]
[1770161122572,3.59285861,97.69,97.636,9.2303]
[1770161123383,9.2236,97.707,97.645,9.2294]
[1770161123574,3.81742225,97.731,97.654,3.50671237]
[1770161123778,3.81742225,97.731,97.656,3.50671237]
[1770161123977,3.81742225,97.731,97.67,3.50671237]
[1770161124280,3.81742225,97.731,97.659,143.5488]
[1770161124281,3.81742225,97.75,97.672,3.50671237]
[1770161124681,6.97826815,97.76,97.672,3.50671237]
[1770161124682,3.81742225,97.746,97.672,3.50671237]
[1770161125083,9.2201,97.745,97.685,9.2256]
[1770161125283,13.03752225,97.745,97.685,9.2256]
[1770161125978,9.2207,97.738,97.675,9.2266]
[1770161126387,9.2207,97.738,97.683,9.2258]
[1770161126982,3.81742225,97.744,97.683,9.2258]
[1770161127185,6.97826815,97.76,97.691,3.50671237]
[1770161127386,3.81742225,97.764,97.701,3.50671237]
[1770161127588,3.81742225,97.784,97.707,3.50671237]
[1770161127789,3.81742225,97.784,97.723,9.2221]
[1770161128185,143.3806,97.775,97.686,3.50671237]
[1770161128390,3.81742225,97.759,97.686,3.50671237]
[1770161128795,10.7956904,97.78,97.708,9.2235]
[1770161129097,3.81742225,97.779,97.708,3.50671237]
[1770161129393,3.81742225,97.779,97.717,9.2226]
[1770161129599,3.81742225,97.779,97.708,3.50671237]
[1770161130695,3.81742225,97.779,97.716,9.2227]
[1770161130896,3.81742225,97.779,97.71,3.50671237]
[1770161131496,3.81742225,97.779,97.724,9.2219]
[1770161131895,3.81742225,97.779,97.701,143.4876]
[1770161131896,3.81742225,97.779,97.715,3.50671237]
[1770161132499,3.81742225,97.799,97.735,3.50671237]
[1770161132899,3.81742225,97.81,97.735,3.50671237]
[1770161133094,3.81742225,97.81,97.754,9.2191]
[1770161133399,6.97826815,97.82,97.755,3.50671237]
[1770161133599,20.0086904,97.82,97.757,9.2188]
[1770161133795,3.81742225,97.82,97.758,3.50671237]
[1770161133996,6.97826815,97.84,97.758,3.50671237]
[1770161133997,3.81742225,97.839,97.758,3.50671237]
[1770161134200,9.212,97.83,97.765,9.2181]
[1770161134596,3.81742225,97.861,97.789,3.50671237]
[1770161134793,6.97826815,97.85,97.765,3.50671237]
[1770161135001,143.247,97.866,97.765,3.50671237]
[1770161135002,3.81742225,97.829,97.765,3.50671237]
[1770161135197,10.7956904,97.85,97.767,3.50671237]
[1770161135403,3.81742225,97.849,97.775,3.50671237]
[1770161135702,3.81742225,97.849,97.743,143.4259]
[1770161135703,9.206,97.894,97.814,3.50671237]
[1770161136003,3.81742225,97.869,97.791,3.50671237]
[1770161136701,3.81742225,97.896,97.818,3.50671237]
[1770161137097,3.81742225,97.879,97.795,3.50671237]
[1770161137302,3.81742225,97.875,97.795,3.50671237]
[1770161137905,3.81742225,97.873,97.796,9.2152]
[1770161138106,3.81742225,97.873,97.795,3.50671237]
[1770161138406,3.81742225,97.873,97.79,143.3566]
[1770161138407,3.81742225,97.873,97.807,9.2141]
[1770161138908,3.81742225,97.872,97.807,9.2141]
[1770161139709,9.2082,97.87,97.807,9.2141]
[1770161139908,3.81742225,97.859,97.784,9.2163]
[1770161140205,3.81742225,97.856,97.775,3.50671237]
[1770161140802,3.81742225,97.856,97.764,143.3939]
[1770161140803,3.81742225,97.856,97.777,3.50671237]
[1770161141701,3.81742225,97.849,97.778,9.2169]
[1770161141906,3.81742225,97.849,97.777,3.50671237]
[1770161142306,9.211,97.842,97.778,9.2169]
[1770161142504,3.81742225,97.87,97.81,143.3272]
[1770161142714,3.81742225,97.87,97.811,9.2137]
[1770161143207,3.81742225,97.87,97.822,9.2127]
[1770161143406,3.81742225,97.87,97.809,3.50671237]
[1770161144002,9.2084,97.869,97.809,3.50671237]
[1770161144207,3.81742225,97.87,97.809,3.50671237]
[1770161144404,3.81742225,97.862,97.8,9.2147]
[1770161145612,3.81742225,97.862,97.783,3.50671237]
[1770161145812,3.81742225,97.859,97.783,3.50671237]
[1770161146512,3.81742225,97.852,97.784,9.2163]
[1770161146913,3.81742225,97.849,97.783,3.50671237]
[1770161147108,3.81742225,97.849,97.783,12.72311237]
[1770161147411,3.81742225,97.849,97.783,3.50671237]
[1770161147609,3.81742225,97.849,97.792,9.2155]
[1770161148407,3.81742225,97.849,97.783,3.50671237]
[1770161149409,3.81742225,97.849,97.786,3.50671237]
[1770161149714,3.81742225,97.849,97.801,9.2147]
[1770161152013,3.81742225,97.849,97.788,3.50671237]
[1770161152216,3.56050216,97.869,97.788,3.50671237]
[1770161152413,3.56050216,97.863,97.806,9.2142]
[1770161153218,9.2099,97.853,97.796,9.2152]
[1770161156812,9.2091,97.862,97.789,143.3576]
[1770161157015,3.56050216,97.863,97.799,3.56379783]
[1770161157712,3.56050216,97.863,97.81,9.2138]
[1770161158517,3.56050216,97.863,97.817,9.2131]
[1770161158718,3.69161106,97.861,97.799,3.56379783]
[1770161159216,3.69161106,97.859,97.775,3.56379783]
[1770161159416,9.211,97.841,97.775,3.56379783]
[1770161159615,3.69161106,97.878,97.804,3.56379783]
[1770161160315,3.69161106,97.863,97.784,3.56379783]
[1770161160514,3.69161106,97.863,97.782,287.0]
[1770161160515,6.97826815,97.87,97.797,143.3462]
[1770161160721,3.69161106,97.901,97.85,9.2101]
[1770161161015,3.69161106,97.901,97.842,3.56379783]
[1770161161214,3.69161106,97.919,97.842,3.56379783]
[1770161161520,3.69161106,97.91,97.842,3.56379783]
[1770161161715,9.2078,97.875,97.822,12.77649783]
[1770161162020,3.69161106,97.879,97.799,3.56379783]
[1770161162218,9.2083,97.869,97.811,9.2138]
[1770161162718,3.69161106,97.879,97.799,3.56379783]
[1770161162913,9.2079,97.874,97.799,3.56379783]
[1770161163519,9.2086,97.867,97.799,3.56379783]
[1770161163715,3.69161106,97.873,97.799,3.56379783]
[1770161163913,3.69161106,97.862,97.781,3.56379783]
[1770161164113,3.69161106,97.848,97.789,9.2159]
[1770161164321,3.69161106,97.846,97.781,3.56379783]
[1770161165023,9.2123,97.828,97.781,3.56379783]
[1770161165421,3.69161106,97.846,97.781,3.56379783]
[1770161165618,3.69161106,97.874,97.799,3.56379783]
[1770161166426,9.2081,97.872,97.817,9.2132]
[1770161166628,3.69161106,97.897,97.817,3.56379783]
[1770161166920,3.69161106,97.897,97.786,143.3626]
[1770161166921,9.2045,97.91,97.843,9.2107]
[1770161167127,3.69161106,97.909,97.843,9.2107]
[1770161167623,3.69161106,97.909,97.823,143.3081]
[1770161167624,3.69161106,97.909,97.844,3.56379783]
[1770161168018,12.89621106,97.909,97.846,9.2105]
[1770161168225,3.69161106,97.908,97.844,3.56379783]
[1770161168724,16.18186815,97.92,97.859,9.2093]
[1770161169229,334.66,97.927,97.86,3.56379783]
[1770161169427,334.66,97.927,97.843,143.279]
[1770161169428,3.69161106,97.93,97.865,3.56379783]
[1770161170122,3.69161106,97.919,97.848,9.2103]
[1770161170426,3.69161106,98.011,97.93,3.56379783]
[1770161170621,9.1998,97.961,97.889,287.3]
[1770161170819,9.1998,97.961,97.885,3.56379783]
[1770161171226,6.97826815,97.95,97.891,9.2063]
[1770161171824,6.97826815,97.95,97.885,3.56379783]
[1770161172428,143.1049,97.963,97.829,143.2989]
[1770161172429,6.97826815,97.93,97.859,3.56379783]
[1770161172620,143.1286,97.947,97.859,3.56379783]
[1770161172621,6.97826815,97.91,97.859,3.56379783]
[1770161174528,6.95071813,97.91,97.859,3.56379783]
[1770161174727,6.95071813,97.91,97.847,9.2104]
[1770161175224,3.69161106,97.953,97.87,3.56379783]
[1770161175426,6.95071813,97.94,97.87,3.56379783]
[1770161175830,3.69161106,97.939,97.87,12.77199783]
[1770161176226,3.69161106,97.939,97.87,3.56379783]
[1770161176731,3.69161106,97.939,97.882,9.207]
[1770161177124,6.95071813,97.94,97.882,9.207]
[1770161177827,6.95071813,97.94,97.87,3.56379783]
[1770161177828,6.95071813,97.94,97.895,9.2059]
[1770161178028,6.95071813,97.94,97.87,3.56379783]
[1770161178727,6.95071813,97.92,97.87,3.56379783]
[1770161179424,6.95071813,97.92,97.86,9.2091]
[1770161180436,6.95071813,97.92,97.849,3.56379783]
[1770161180437,9.2039,97.916,97.849,3.56379783]
[1770161180735,3.69161106,97.919,97.849,3.56379783]
[1770161181230,334.38,97.939,97.844,286.48]
[1770161181231,3.63027781,97.939,97.861,143.2519]
[1770161181434,3.63027781,97.939,97.867,3.51529521]
[1770161181930,3.63027781,97.939,97.87,146.75509521]
[1770161182135,3.63027781,97.939,97.873,3.51529521]
[1770161182335,3.63027781,97.939,97.875,143.2317]
[1770161182534,3.63027781,97.939,97.876,3.51529521]
[1770161182832,9.2007,97.951,97.887,9.2066]
[1770161183135,3.63027781,97.955,97.878,3.51529521]
[1770161183938,9.2004,97.954,97.889,9.2064]
[1770161184834,9.2004,97.954,97.898,9.2056]
[1770161185736,9.2004,97.954,97.888,9.2065]
[1770161186834,9.2012,97.946,97.888,9.2065]
[1770161187628,3.63027781,97.937,97.876,9.2076]
[1770161188027,9.2021,97.936,97.876,9.2076]
[1770161188231,3.63027781,97.935,97.876,9.2076]
[1770161189836,9.2026,97.93,97.876,9.2076]
[1770161190035,3.63027781,97.935,97.884,9.2069]
[1770161190335,9.2023,97.934,97.884,9.2069]
[1770161190537,3.63027781,97.935,97.884,9.2069]
[1770161191840,3.63027781,97.996,97.912,3.51529521]
[1770161192235,3.63027781,97.996,97.918,3.51529521]
[1770161193338,9.1974,97.986,97.929,9.2026]
[1770161193641,9.1974,97.986,97.918,3.51529521]
[1770161194642,3.63027781,97.996,97.924,3.51529521]
[1770161195236,9.1965,97.995,97.944,9.2012]
[1770161196136,9.1973,97.987,97.936,9.202]
[1770161196642,3.63027781,97.996,97.924,3.51529521]
[1770161197844,3.63027781,97.979,97.893,3.51529521]
[1770161198139,3.63027781,97.979,97.907,3.51529521]
[1770161198349,9.1975,97.985,97.915,3.51529521]
[1770161198949,9.1967,97.993,97.937,9.2019]
[1770161199840,9.1974,97.986,97.937,9.2019]
[1770161200835,3.63027781,97.979,97.915,3.51529521]
[1770161201740,9.1992,97.967,97.918,9.2037]
[1770161203143,9.1992,97.967,97.92,12.71879521]
[1770161203340,9.1992,97.967,97.921,3.51529521]
[1770161203939,9.1992,97.967,97.892,285.76]
[1770161203940,3.63027781,98.003,97.94,3.51529521]
[1770161204243,10.58099594,98.05,97.969,3.51529521]
[1770161204541,10.58099594,98.05,97.982,3.51529521]
[1770161204744,3.63027781,98.049,97.982,3.51529521]
[1770161205450,3.63027781,98.049,97.986,3.51529521]
[1770161205643,9.1904,98.06,98.003,9.1957]
[1770161206048,6.95071813,98.07,98.003,9.1957]
[1770161206344,6.95071813,98.07,97.986,3.51529521]
[1770161206345,9.1895,98.07,98.013,9.1948]
[1770161212345,3.63027781,98.072,98.013,9.1948]
[1770161212651,3.63027781,98.072,98.022,9.1939]
[1770161212945,3.63027781,98.072,98.004,3.58878789]
[1770161212946,12.81957781,98.072,98.004,3.58878789]
[1770161213847,12.81957781,98.072,98.012,9.1948]
[1770161214952,3.77731879,98.079,98.025,9.1937]
[1770161216651,12.96601879,98.079,98.025,9.1937]
[1770161217255,3.77731879,98.079,98.025,9.1937]
[1770161217756,3.58780473,98.078,98.025,9.1937]
[1770161218352,3.58780473,98.078,98.013,3.58878789]
[1770161218546,9.1899,98.066,98.013,12.78348789]
[1770161218745,3.58780473,98.064,97.995,3.66729809]
[1770161218945,9.1915,98.048,97.995,3.66729809]
[1770161219351,3.58780473,98.039,97.977,3.66729809]
[1770161219553,3.58780473,98.039,97.931,143.1501]
[1770161219554,3.58780473,98.033,97.959,3.66729809]
[1770161220150,6.95071813,98.04,97.959,3.66729809]
[1770161220358,3.58780473,98.089,98.003,3.66729809]
[1770161220562,3.58780473,98.125,98.049,3.66729809]
[1770161220851,3.58780473,98.125,98.02,6.95071813]
[1770161220852,3.58780473,98.185,98.1,3.66729809]
[1770161221053,3.58780473,98.184,98.113,3.66729809]
[1770161221448,3.58780473,98.179,98.099,284.22]
[1770161221648,3.58780473,98.151,98.068,3.66729809]
[1770161221858,3.58780473,98.148,98.069,3.66729809]
[1770161222256,3.58780473,98.148,98.054,284.58]
[1770161222257,3.58780473,98.126,98.054,284.58]
[1770161222553,3.58780473,98.106,98.022,3.66729809]
[1770161223056,9.1869,98.098,98.036,9.1926]
[1770161223255,142.8711,98.123,98.037,3.66729809]
[1770161223655,9.1857,98.111,98.04,3.66729809]
[1770161224256,9.1857,98.111,98.042,9.1921]
[1770161224653,3.58780473,98.121,98.043,3.66729809]
[1770161224853,3.58780473,98.096,98.022,3.66729809]
[1770161225058,3.58780473,98.08,98.001,3.66729809]
[1770161226449,9.1894,98.071,98.004,3.66729809]
[1770161226753,3.58780473,98.122,98.031,3.66729809]
[1770161227051,3.58780473,98.122,98.044,3.66729809]
[1770161227853,3.58780473,98.114,98.047,3.66729809]
[1770161228555,9.186,98.108,98.047,3.66729809]
[1770161230357,9.1869,98.098,98.047,3.66729809]
[1770161231258,9.1859,98.109,98.047,3.66729809]
[1770161231551,3.58780473,98.108,98.017,381.2438]
[1770161231757,9.1879,98.087,98.02,9.1941]
[1770161232454,9.1879,98.087,98.022,9.194]
[1770161234755,3.58780473,98.099,98.034,3.66729809]
[1770161235060,3.58780473,98.114,98.034,3.66729809]
[1770161235254,3.58780473,98.098,98.013,3.66729809]
[1770161235458,3.58780473,98.091,98.013,3.66729809]
[1770161235953,3.58780473,98.091,98.016,3.66729809]
[1770161236862,9.1885,98.081,98.018,9.1942]
[1770161237160,3.58780473,98.091,98.016,3.66729809]
[1770161237458,3.58780473,98.091,98.004,143.0428]
[1770161237459,9.1876,98.091,98.031,9.1931]
[1770161238464,9.1883,98.082,98.029,3.66729809]
[1770161241856,3.59014375,98.074,97.972,143.0896]
[1770161242059,3.59014375,98.068,97.986,3.80222561]
[1770161242458,9.193,98.033,97.973,9.1985]
[1770161242662,12.78314375,98.033,97.966,3.80222561]
[1770161242957,3.59014375,98.033,97.966,3.80222561]
[1770161244264,9.1936,98.026,97.966,3.80222561]
[1770161244561,3.59014375,98.027,97.935,3.80222561]
[1770161244759,3.59014375,98.027,97.937,3.80222561]
[1770161245763,9.1945,98.017,97.937,3.80222561]
[1770161246164,9.1954,98.008,97.941,9.2015]
[1770161246359,10.51443069,98.0,97.937,3.80222561]
[1770161246562,3.59014375,97.999,97.937,3.80222561]
[1770161247567,3.59014375,97.999,97.949,9.2007]
[1770161247765,3.59014375,98.039,97.956,3.80222561]
[1770161248262,3.59014375,98.038,97.968,143.0962]
[1770161248458,3.59014375,98.038,97.967,3.80222561]
[1770161248659,3.59014375,98.037,97.978,9.1981]
[1770161249665,3.59014375,98.035,97.978,9.1981]
[1770161250461,3.59014375,98.035,97.978,13.00032561]
[1770161251168,3.59014375,98.019,97.94,143.1371]
[1770161251364,3.59014375,98.019,97.939,283.56]
[1770161251365,3.59014375,98.019,97.943,3.80222561]
[1770161252068,3.59014375,98.015,97.957,9.2001]
[1770161253663,12.78494375,98.014,97.957,9.2001]
[1770161253863,3.59014375,98.013,97.957,9.2001]
[1770161256266,3.59014375,97.979,97.904,3.80222561]
[1770161256871,3.59014375,97.975,97.917,9.2038]
[1770161257371,3.59014375,97.975,97.926,9.203]
[1770161258467,10.51443069,97.96,97.904,3.80222561]
[1770161258662,3.59014375,97.959,97.885,3.80222561]
[1770161259066,3.59014375,97.939,97.864,3.80222561]
[1770161259467,9.202,97.937,97.873,9.2079]
[1770161259662,3.59014375,97.936,97.864,3.80222561]
[1770161259861,3.59014375,97.936,97.866,3.80222561]
[1770161260081,6.92428694,97.94,97.872,3.80222561]
[1770161260470,3.59014375,97.974,97.893,3.80222561]
[1770161260671,3.59014375,97.974,97.895,3.80222561]
[1770161260870,3.59014375,97.959,97.895,3.80222561]
[1770161261070,3.59014375,97.959,97.896,9.2057]
[1770161261367,3.59014375,97.979,97.908,3.80222561]
[1770161262664,3.59014375,97.979,97.923,9.2032]
[1770161262864,3.59014375,97.979,97.908,3.80222561]
[1770161263175,3.59014375,97.969,97.908,3.80222561]
[1770161263972,3.59014375,97.965,97.899,9.2054]
[1770161264674,9.1998,97.96,97.899,9.2054]
[1770161265268,3.59014375,97.965,97.909,9.2046]
[1770161266069,143.021,98.02,97.899,3.80222561]
[1770161266070,9.1985,97.974,97.919,9.2036]
[1770161266275,3.59014375,97.985,97.919,9.2036]
[1770161267369,9.1976,97.984,97.927,9.2028]
[1770161267774,326.62,98.004,97.93,3.80222561]
[1770161267973,3.59014375,98.005,97.951,9.2005]
[1770161268178,3.59014375,98.027,97.952,3.80222561]
[1770161268374,3.59014375,98.027,97.945,143.1301]
[1770161268375,3.59014375,98.027,97.954,3.80222561]
[1770161268570,3.59014375,98.049,97.975,146.88782561]
[1770161268879,3.59014375,98.069,97.994,3.80222561]
[1770161269079,3.59014375,98.069,98.013,9.1948]
[1770161269675,9.1897,98.068,98.003,9.1957]
[1770161271881,3.59014375,98.069,98.013,9.1948]
[1770161274177,3.59014375,98.069,97.996,3.57839181]
[1770161275180,12.77974375,98.069,97.997,9.1962]
[1770161275383,3.82302391,98.068,97.997,9.1962]
[1770161276280,3.82302391,98.068,97.997,12.95782318]
[1770161276984,3.82302391,98.068,98.0,3.76162318]
[1770161277981,3.82302391,98.068,98.015,9.1946]
[1770161278285,3.82302391,98.076,98.016,3.76162318]
[1770161279087,3.82302391,98.069,97.992,3.76162318]
[1770161280391,3.82302391,98.069,98.005,3.76162318]
[1770161280986,3.82302391,98.047,97.98,3.76162318]
[1770161281187,3.82302391,98.029,97.956,3.76162318]
[1770161281686,6.92428694,98.06,97.976,3.76162318]
[1770161281884,3.82302391,98.059,97.976,3.76162318]
[1770161282082,3.82302391,98.038,97.976,3.76162318]
[1770161282390,3.82302391,98.016,97.935,3.76162318]
[1770161282582,10.74731085,98.0,97.935,3.76162318]
[1770161282779,9.1962,97.999,97.935,3.76162318]
[1770161282982,3.82302391,97.998,97.935,3.76162318]
[1770161283384,9.1977,97.983,97.935,3.76162318]
[1770161284387,3.82302391,97.959,97.893,3.76162318]
[1770161285387,6.92428694,97.96,97.87,3.76162318]
[1770161285388,143.1319,97.944,97.87,3.76162318]
[1770161285583,6.92428694,97.94,97.87,3.76162318]
[1770161286282,10.74731085,97.94,97.87,3.76162318]
[1770161286687,9.2018,97.939,97.87,3.76162318]
[1770161287292,9.2018,97.939,97.869,9.2082]
[1770161287293,10.74731085,97.96,97.89,3.76162318]
[1770161288393,3.82302391,97.959,97.89,3.76162318]
[1770161288894,9.2001,97.957,97.894,9.206]
[1770161291187,323.22,97.977,97.872,3.76162318]
[1770161291188,10.74731085,97.94,97.872,3.76162318]
[1770161291888,3.82302391,97.938,97.872,3.76162318]
[1770161292488,3.82302391,97.938,97.851,3.76162318]
[1770161292889,3.82302391,97.919,97.851,3.76162318]
[1770161293692,9.2044,97.911,97.851,3.76162318]
[1770161294001,3.82302391,97.919,97.851,3.76162318]
[1770161294193,6.92428694,97.94,97.856,3.76162318]
[1770161294393,3.82302391,97.942,97.873,3.76162318]
[1770161295696,3.82302391,97.942,97.879,9.2073]
[1770161296593,3.82302391,97.942,97.883,3.76162318]
[1770161296797,6.92428694,97.96,97.883,3.76162318]
[1770161296994,3.82302391,97.981,97.901,3.76162318]
[1770161297397,322.44,98.0,97.92,3.76162318]
[1770161297797,322.44,98.0,97.937,9.2019]
[1770161297991,9.1958,98.003,97.928,3.76162318]
[1770161298395,6.92428694,98.01,97.928,3.76162318]
[1770161298396,3.82302391,97.998,97.936,9.202]
[1770161299095,6.93765877,98.03,97.948,3.76162318]
[1770161299296,3.82302391,98.029,97.954,3.76162318]
[1770161299805,6.93765877,98.03,97.968,3.76162318]
[1770161301201,3.72186872,98.009,97.928,3.64896422]
[1770161301902,3.72186872,98.007,97.933,12.85116422]
[1770161302403,3.72186872,98.007,97.934,3.64896422]
[1770161303700,3.72186872,97.995,97.912,3.64896422]
[1770161304802,3.72186872,97.991,97.923,9.2032]
[1770161305003,3.72186872,97.991,97.912,3.64896422]
[1770161305395,9.1975,97.984,97.923,9.2032]
[1770161308605,3.72186872,97.971,97.912,3.64896422]
[1770161308805,3.72186872,97.959,97.892,3.64896422]
[1770161309005,3.72186872,97.953,97.873,3.64896422]
[1770161309207,6.93765877,97.94,97.873,3.64896422]
[1770161309603,6.93765877,97.94,97.878,3.64896422]
[1770161310104,9.2012,97.945,97.878,3.64896422]
[1770161310308,6.93765877,97.97,97.89,3.64896422]
[1770161310909,3.72186872,97.973,97.909,3.64896422]
[1770161311514,3.72186872,97.973,97.919,9.2036]
[1770161311705,3.72186872,97.973,97.909,3.64896422]
[1770161312813,3.72186872,97.973,97.918,9.2037]
[1770161313506,9.1989,97.97,97.912,9.2042]
[1770161314607,3.72186872,97.973,97.912,9.2042]
[1770161315008,3.72186872,97.969,97.902,9.2052]
[1770161316407,3.72186872,97.938,97.879,9.2073]
[1770161316811,3.72186872,97.938,97.869,3.64896422]
[1770161317216,9.2023,97.934,97.878,12.85636422]
[1770161317909,3.72186872,97.938,97.883,9.207]
[1770161318315,3.72186872,97.938,97.879,3.64896422]
[1770161318517,9.2028,97.928,97.879,3.64896422]
[1770161318714,3.72186872,97.938,97.879,3.64896422]
[1770161319812,9.202,97.937,97.88,9.2073]
[1770161321114,9.2032,97.924,97.879,3.64896422]
[1770161321421,3.72186872,97.936,97.879,3.64896422]
[1770161321910,3.72186872,97.956,97.879,3.64896422]
[1770161322116,3.72186872,97.956,97.882,3.64896422]
[1770161323210,3.72186872,97.956,97.899,3.64896422]
[1770161323812,3.72186872,97.956,97.907,9.2048]
[1770161324019,3.72186872,97.956,97.899,3.64896422]
[1770161325818,6.93765877,97.97,97.873,276.74]
[1770161325819,3.72186872,97.949,97.88,3.64896422]
[1770161327019,9.2016,97.941,97.892,9.2061]
[1770161327224,3.72186872,97.949,97.892,9.2061]
[1770161328026,3.72186872,97.969,97.903,3.64896422]
[1770161329825,9.2,97.958,97.907,9.2047]
[1770161331425,3.86265074,97.989,97.921,3.50602269]
[1770161331823,9.1988,97.97,97.921,3.50602269]
[1770161336724,9.1988,97.97,97.922,9.2033]
[1770161338229,9.1974,97.986,97.926,3.82778427]
[1770161338629,6.93765877,98.01,97.926,3.82778427]
[1770161338630,3.80109461,97.985,97.926,3.82778427]
[1770161338830,3.80109461,97.985,97.908,3.82778427]
[1770161339024,9.1983765,98.031,97.897,143.1992]
[1770161339025,3.80109461,98.003,97.927,3.82778427]
[1770161339428,3.80109461,98.003,97.917,143.171]
[1770161339429,9.1959,98.002,97.951,3.82778427]
[1770161339633,3.80109461,98.02,97.951,3.82778427]
[1770161340328,7.53776373,98.036,97.96,3.82778427]
[1770161340529,18.3798,98.066,97.946,143.1274]
[1770161340530,142.9693,98.056,97.975,3.82778427]
[1770161340735,7.53776373,98.069,97.956,3.82778427]
[1770161340736,3.80109461,98.019,97.956,3.82778427]
[1770161340931,3.80109461,97.999,97.917,3.82778427]
[1770161341234,3.80109461,97.999,97.925,3.82778427]
[1770161341436,3.80109461,97.999,97.944,9.2012]
[1770161341825,3.80109461,97.999,97.948,9.2008]
[1770161342832,9.1963,97.998,97.945,3.82778427]
[1770161343426,12.99739461,97.998,97.945,3.82778427]
[1770161343625,143.0225,98.019,97.945,3.82778427]
[1770161343626,9.1969,97.991,97.945,3.82778427]
[1770161344036,3.80109461,97.997,97.945,3.82778427]
[1770161344736,3.80109461,97.997,97.95,9.2007]
[1770161345235,3.80109461,97.997,97.945,3.82778427]
[1770161346133,3.80109461,97.997,97.916,143.1723]
[1770161346134,3.80109461,97.997,97.917,3.82778427]
[1770161346335,6.93765877,97.97,97.917,3.82778427]
[1770161347130,6.93765877,97.99,97.917,3.82778427]
[1770161347439,12.99739461,97.998,97.943,9.2013]
[1770161349633,9.1953,98.008,97.952,3.82778427]
[1770161350734,9.1953,98.008,97.957,9.2]
[1770161351335,9.1953,98.008,97.952,3.82778427]
[1770161352743,3.80109461,98.004,97.924,3.82778427]
[1770161353345,3.80109461,98.003,97.945,9.2012]
[1770161353536,3.80109461,98.003,97.924,3.82778427]
[1770161353741,3.80109461,97.999,97.924,3.82778427]
[1770161354142,12.99889461,97.982,97.926,9.2029]
[1770161354545,3.80109461,97.979,97.924,3.82778427]
[1770161354844,3.80109461,97.973,97.905,3.82778427]
[1770161355842,3.80109461,97.973,97.908,3.82778427]
[1770161357848,9.1998,97.96,97.908,3.82778427]
[1770161358644,3.80109461,97.951,97.897,9.2057]
[1770161359147,3.80109461,97.949,97.891,3.82778427]
[1770161360152,3.80109461,97.949,97.893,3.82778427]
[1770161361045,3.83826313,97.946,97.888,9.2065]
[1770161362149,3.83826313,97.946,97.88,3.7179915]
[1770161363548,3.83826313,97.946,97.89,9.2064]
[1770161364451,2.43041836,97.93,97.89,9.2064]
[1770161366458,2.43041836,97.94,97.894,12.9239915]
[1770161366643,2.43041836,97.94,97.87,2.43041836]
[1770161366644,3.83826313,97.964,97.895,3.7179915]
[1770161366850,2.43041836,97.96,97.895,3.7179915]
[1770161367553,2.43041836,97.95,97.898,9.2055]
[1770161367756,2.43041836,97.94,97.898,9.2055]
[1770161367958,143.0801,97.98,97.877,143.2287]
[1770161367959,2.43041836,97.93,97.877,3.7179915]
[1770161368155,2.43041836,97.92,97.877,3.7179915]
[1770161368350,143.1277,97.947,97.877,3.7179915]
[1770161368351,3.83826313,97.929,97.877,3.7179915]
[1770161369653,9.203,97.926,97.877,3.7179915]
[1770161369853,3.83826313,97.925,97.877,3.7179915]
[1770161370155,3.83826313,97.925,97.869,9.2083]
[1770161370655,9.2036,97.919,97.869,9.2083]
[1770161371763,3.83826313,97.925,97.876,9.2076]
[1770161375464,3.83826313,97.96,97.877,3.7179915]
[1770161375963,3.83826313,97.949,97.877,3.7179915]
[1770161376164,3.83826313,97.931,97.877,3.7179915]
[1770161377669,9.2029,97.928,97.877,3.7179915]
[1770161378271,9.2028,97.928,97.879,9.2074]
[1770161378966,3.83826313,97.952,97.886,3.7179915]
[1770161379366,3.83826313,97.939,97.868,3.7179915]
[1770161379671,6.9475298,97.92,97.844,3.7179915]
[1770161380772,9.2047,97.908,97.853,3.7179915]
[1770161380974,6.9475298,97.94,97.855,3.7179915]
[1770161381372,3.83826313,97.924,97.874,9.2078]
[1770161382276,3.83826313,97.92,97.864,9.2088]
[1770161383269,9.2038,97.918,97.864,9.2088]
[1770161383477,3.83826313,97.919,97.855,12.9275915]
[1770161383676,3.83826313,97.919,97.856,3.7179915]